bitfinex-derivatives/quotes_SOLF0:USTF0_20250409
["timestamp","ask_amount","ask_price","bid_price","bid_amount"]
[1744190877042,14.65129843,106.55,106.5,51.74509843]
[1744190877433,9.3918,106.53,106.51,9.3929]
[1744190878037,9.3911,106.54,106.52,9.3921]
[1744190878239,0.06824839,106.53,106.51,0.06149865]
[1744190878439,9.46014839,106.53,106.51,9.45439865]
[1744190880644,0.06824839,106.53,106.51,9.45439865]
[1744190880841,0.06824839,106.53,106.52,9.3924]
[1744190881251,0.06824839,106.53,106.52,21.55599843]
[1744190881744,14.80879843,106.58,106.52,12.16359843]
[1744190881937,14.80879843,106.58,106.53,49.14359843]
[1744190882138,9.3902,106.55,106.53,36.98]
[1744190882644,12.16359843,106.57,106.53,36.98]
[1744190882841,0.06401962,106.55,106.53,49.21380992]
[1744190883044,12.16359843,106.58,106.54,14.68389843]
[1744190883238,12.16359843,106.58,106.54,2.5203]
[1744190883437,12.16359843,106.56,106.52,14.79249843]
[1744190883938,9.3898,106.55,106.53,9.391]
[1744190884240,9.45369251,106.55,106.53,9.45345611]
[1744190885442,9.45369251,106.55,106.53,0.06245611]
[1744190885842,0.06389251,106.55,106.53,12.22605454]
[1744190886042,12.16359843,106.6,106.54,12.16359843]
[1744190886238,12.16359843,106.58,106.53,2.6537]
[1744190886443,12.16359843,106.58,106.53,14.81729843]
[1744190886944,9.3884,106.57,106.54,12.16359843]
[1744190887244,0.061194,106.57,106.54,12.23475481]
[1744190887642,0.061194,106.57,106.55,9.3891]
[1744190888948,9.449194,106.57,106.55,9.3891]
[1744190890746,0.061194,106.57,106.55,9.3891]
[1744190890949,0.061194,106.57,106.55,46.3691]
[1744190891547,0.061194,106.57,106.56,9.3888]
[1744190891943,0.061194,106.57,106.55,36.98]
[1744190892144,0.061194,106.57,106.54,12.23475481]
[1744190892348,0.061194,106.57,106.54,0.07115638]
[1744190892844,12.22479243,106.57,106.54,0.07115638]
[1744190893445,9.3897,106.55,106.54,0.07115638]
[1744190895449,21.55329843,106.55,106.54,0.07115638]
[1744190897547,58.52359843,106.55,106.47,49.14359843]
[1744190897848,12.16359843,106.5,106.45,54.11249843]
[1744190898049,9.396,106.48,106.45,26.53019843]
[1744190898650,9.396,106.48,106.45,26.59860302]
[1744190898651,9.46603147,106.48,106.45,26.59860302]
[1744190899253,9.3969,106.47,106.45,26.59860302]
[1744190899446,0.07003147,106.48,106.45,26.59860302]
[1744190899653,0.07003147,106.48,106.45,17.20090302]
[1744190899953,0.07003147,106.48,106.45,0.06840459]
[1744190901257,12.16359843,106.47,106.45,0.06840459]
[1744190902256,12.16359843,106.46,106.37,495.82]
[1744190902550,12.16359843,106.42,106.37,49.12359843]
[1744190902749,12.16359843,106.42,106.37,58.52849843]
[1744190902949,12.16359843,106.44,106.39,12.16359843]
[1744190903450,12.23470378,106.43,106.4,0.06526878]
[1744190904353,12.16359843,106.41,106.4,0.06526878]
[1744190904749,21.56569843,106.41,106.4,0.06526878]
[1744190906350,21.56529843,106.42,106.4,0.06526878]
[1744190906648,12.16359843,106.42,106.4,0.06526878]
[1744190906852,21.56569843,106.41,106.4,0.06526878]
[1744190907456,12.16359843,106.41,106.35,5.1213]
[1744190907650,9.4049,106.38,106.35,5.1213]
[1744190908048,9.4073,106.36,106.29,496.18]
[1744190908252,12.16359843,106.37,106.32,12.16359843]
[1744190908452,0.07223006,106.34,106.32,12.16359843]
[1744190908649,0.07223006,106.34,106.33,12.16359843]
[1744190908853,0.07223006,106.34,106.32,12.23417345]
[1744190909053,0.07223006,106.34,106.33,49.14359843]
[1744190909251,0.07223006,106.34,106.32,0.07057502]
[1744190909551,12.16359843,106.4,106.33,12.16359843]
[1744190909756,9.4043,106.39,106.36,9.4061]
[1744190910058,12.16359843,106.39,106.34,51.59079843]
[1744190910358,9.4052,106.38,106.35,9.4069]
[1744190910554,0.0592078,106.38,106.35,9.46987655]
[1744190910758,0.0592078,106.38,106.35,0.06297655]
[1744190910952,0.0592078,106.38,106.37,9.4056]
[1744190912858,0.0592078,106.38,106.37,46.3856]
[1744190913058,9.4016,106.42,106.39,9.4038]
[1744190913255,9.4016,106.42,106.37,36.98]
[1744190913459,36.98,106.44,106.37,36.98]
[1744190913659,36.98,106.44,106.39,9.4038]
[1744190913962,9.4023,106.41,106.37,36.98]
[1744190914154,9.4023,106.41,106.4,0.07018085]
[1744190915667,0.06615479,106.42,106.4,0.07018085]
[1744190916260,9.4021,106.41,106.4,0.07018085]
[1744190918857,28.23,106.55,106.4,37.07018085]
[1744190919062,19.09407189,106.51,106.42,19.09407189]
[1744190919264,1.63537677,106.54,106.46,19.09407189]
[1744190919565,9.3928,106.52,106.48,9.3955]
[1744190920060,0.05926236,106.51,106.49,9.46403804]
[1744190921060,0.05926236,106.51,106.49,0.06923804]
[1744190921762,9.3941,106.5,106.49,0.06923804]
[1744190921960,0.05926236,106.51,106.49,0.06923804]
[1744190922160,0.05926236,106.51,106.49,9.46373804]
[1744190922359,0.05926236,106.51,106.49,0.06923804]
[1744190922759,9.3941,106.5,106.49,0.06923804]
[1744190928468,9.3969,106.47,106.45,2.4714]
[1744190929370,9.3963,106.48,106.45,2.4714]
[1744190929569,0.0614305,106.47,106.45,11.93817173]
[1744190930471,9.4583305,106.47,106.45,11.93817173]
[1744190930670,0.0614305,106.47,106.45,11.93817173]
[1744190930971,0.0614305,106.47,106.45,2.54007173]
[1744190931466,0.0614305,106.47,106.45,11.93807173]
[1744190931776,9.4583305,106.47,106.45,2.54007173]
[1744190932874,9.4583305,106.47,106.45,11.93857173]
[1744190933069,0.0614305,106.47,106.45,11.93857173]
[1744190933877,0.0614305,106.47,106.46,9.3977]
[1744190934066,19.09407189,106.52,106.45,2.54007173]
[1744190934262,19.09407189,106.52,106.45,2.4714]
[1744190934463,9.3948,106.5,106.47,9.3964]
[1744190934973,19.09407189,106.52,106.46,9.3972]
[1744190935177,19.16563734,106.5,106.47,0.06725024]
[1744190935375,19.09407189,106.48,106.43,2.4496]
[1744190936277,9.3991,106.45,106.43,2.4496]
[1744190936476,9.3991,106.45,106.44,0.06144044]
[1744190940571,9.398,106.46,106.44,0.06144044]
[1744190941774,9.398,106.46,106.44,9.46084044]
[1744190942174,9.46071521,106.47,106.44,0.06144044]
[1744190942478,9.46071521,106.47,106.44,42.11494044]
[1744190942676,0.06341521,106.47,106.45,9.3982]
[1744190943278,0.06341521,106.47,106.45,9.398]
[1744190944378,9.3963,106.48,106.46,9.3977]
[1744190945381,9.3963,106.48,106.45,9.3978]
[1744190945677,9.46518946,106.48,106.44,61.20901233]
[1744190945875,1.63460861,106.56,106.46,19.09407189]
[1744190946082,28.1611,106.59,106.5,19.09407189]
[1744190946083,2.5918,106.58,106.5,19.09407189]
[1744190946281,2.5918,106.58,106.51,39.4908]
[1744190946584,9.3892,106.56,106.52,28.48627189]
[1744190947078,9.45587555,106.55,106.53,0.0701326]
[1744190948481,9.3906,106.54,106.53,0.0701326]
[1744190949574,0.06577555,106.55,106.53,0.0701326]
[1744190949575,9.45617555,106.55,106.53,0.0701326]
[1744190950180,9.3906,106.54,106.53,0.0701326]
[1744190954879,19.09407189,106.54,106.48,36.94]
[1744190955182,2.5513,106.53,106.48,36.94]
[1744190955383,9.3949,106.5,106.48,36.94]
[1744190955985,9.45500257,106.5,106.48,37.00067564]
[1744190957285,9.45500257,106.5,106.48,46.39657564]
[1744190957679,0.06010257,106.5,106.48,46.39657564]
[1744190957887,18.7776,106.57,106.49,19.09407189]
[1744190958283,9.3924,106.52,106.49,28.48857189]
[1744190958684,9.3924,106.52,106.49,19.09407189]
[1744190959093,9.45541213,106.52,106.49,19.16400614]
[1744190959884,0.06301213,106.52,106.5,9.3941]
[1744190960187,56.03407189,106.58,106.51,36.94]
[1744190960582,9.3919,106.53,106.51,36.94]
[1744190961082,56.03407189,106.58,106.51,36.94]
[1744190961287,9.3924,106.52,106.51,37.01101006]
[1744190961586,9.3924,106.52,106.51,36.94]
[1744190961988,9.45936304,106.53,106.51,36.94]
[1744190962289,0.06736304,106.53,106.51,36.94]
[1744190962486,9.3895,106.56,106.51,36.94]
[1744190962680,2.5898,106.59,106.52,2.5582]
[1744190963083,9.3898,106.55,106.52,2.5582]
[1744190963688,9.45782155,106.55,106.52,2.62692718]
[1744190963890,9.45782155,106.55,106.52,12.01862718]
[1744190965396,0.06802155,106.55,106.52,2.62692718]
[1744190965794,0.06802155,106.55,106.53,9.3906]
[1744190965994,0.06802155,106.55,106.54,36.9]
[1744190966193,9.45772155,106.55,106.54,36.9]
[1744190967196,0.06802155,106.55,106.54,36.9]
[1744190967598,9.45772155,106.55,106.54,36.9]
[1744190968892,0.06802155,106.55,106.52,5.27882718]
[1744190969105,0.06802155,106.55,106.52,2.62692718]
[1744190969498,9.3915,106.53,106.52,2.62692718]
[1744190969799,9.3915,106.53,106.52,0.06872718]
[1744190979002,2.44,106.54,106.49,55.99407189]
[1744190979205,19.5373,106.57,106.49,55.99407189]
[1744190979401,2.44,106.56,106.5,9.3937]
[1744190980103,9.392,106.53,106.52,0.06282364]
[1744190982204,9.45929825,106.54,106.52,0.06282364]
[1744190982404,9.45929825,106.54,106.52,36.96282364]
[1744190983208,9.3915,106.53,106.52,0.06282364]
[1744190986617,9.45939825,106.54,106.52,0.06282364]
[1744190987013,9.3915,106.53,106.52,0.06282364]
[1744190993520,9.3941,106.5,106.48,14.84025629]
[1744190994413,12.18835629,106.54,106.49,21.58295629]
[1744190994609,0.06746452,106.5,106.49,58.46295629]
[1744190994821,12.18835629,106.54,106.49,58.46295629]
[1744190995118,9.45467848,106.51,106.49,58.46295629]
[1744190995319,0.06117848,106.51,106.5,9.45901856]
[1744190996124,0.06117848,106.51,106.5,21.64737485]
[1744190996421,0.06117848,106.51,106.5,12.25327485]
[1744190999118,9.45437848,106.51,106.5,12.25327485]
[1744191001121,49.12953477,106.51,106.41,703.08488059]
[1744191001424,12.18835629,106.5,106.45,12.18835629]
[1744191001627,12.18835629,106.5,106.45,49.06835629]
[1744191001926,12.18835629,106.53,106.48,12.18835629]
[1744191002125,12.95195629,106.54,106.49,12.18835629]
[1744191002423,0.06496468,106.52,106.49,12.25830333]
[1744191002627,0.06496468,106.52,106.49,0.06994704]
[1744191003620,9.3941,106.5,106.49,0.06994704]
[1744191004019,12.18835629,106.5,106.44,12.18835629]
[1744191004327,12.18835629,106.48,106.43,54.15995629]
[1744191004926,9.3992,106.45,106.43,54.15995629]
[1744191005120,12.18835629,106.47,106.43,41.9716]
[1744191005324,0.06366916,106.45,106.43,42.04021707]
[1744191005524,9.398,106.46,106.43,41.9716]
[1744191005728,9.4574488,106.46,106.43,42.03474781]
[1744191007829,9.4574488,106.46,106.43,5.15474781]
[1744191008027,9.3986,106.45,106.43,5.15474781]
[1744191008831,0.0594488,106.46,106.43,5.15474781]
[1744191009033,9.3994,106.44,106.43,2.65314781]
[1744191009234,0.0594488,106.46,106.43,2.65314781]
[1744191009633,9.399,106.45,106.43,2.65314781]
[1744191009929,0.0594488,106.46,106.43,2.65314781]
[1744191010339,9.399,106.45,106.43,2.65314781]
[1744191014034,0.0594488,106.46,106.43,2.65314781]
[1744191014238,0.0594488,106.46,106.43,0.06314781]
[1744191014637,9.3994,106.44,106.43,0.06314781]
[1744191015343,9.3989,106.45,106.43,0.06314781]
[1744191015639,0.0594488,106.46,106.43,0.06314781]
[1744191016540,9.3992,106.45,106.43,0.06314781]
[1744191016740,0.0594488,106.46,106.43,0.06314781]
[1744191017041,9.3994,106.44,106.43,0.06314781]
[1744191023843,0.0594488,106.46,106.43,19.13563716]
[1744191024046,21.3023,106.53,106.45,19.07248935]
[1744191024346,9.3945,106.5,106.47,19.07248935]
[1744191024546,9.3945,106.5,106.48,36.88]
[1744191025247,9.45740199,106.5,106.49,12.19423518]
[1744191026853,9.45740199,106.5,106.48,36.94690044]
[1744191027059,9.45740199,106.5,106.48,49.14113562]
[1744191027346,9.395,106.49,106.48,49.14113562]
[1744191027743,0.06290199,106.5,106.48,49.14113562]
[1744191028139,9.45730199,106.5,106.48,49.14113562]
[1744191028451,0.06290199,106.5,106.48,49.14113562]
[1744191029049,9.45700199,106.5,106.48,49.14113562]
[1744191029448,0.06290199,106.5,106.48,49.14113562]
[1744191029657,2.6594,106.57,106.49,12.19423518]
[1744191029849,2.6594,106.57,106.53,12.19423518]
[1744191030051,9.3901,106.55,106.53,12.19423518]
[1744191030650,9.46107435,106.55,106.53,12.25864445]
[1744191031254,9.46107435,106.55,106.53,0.06440927]
[1744191033457,9.3906,106.54,106.53,0.06440927]
[1744191039574,9.3906,106.54,106.53,9.27e-06]
[1744191041274,9.3964,106.48,106.45,21.52134533]
[1744191041475,36.86,106.52,106.45,58.38134533]
[1744191041669,2.5086,106.51,106.45,58.38134533]
[1744191041863,9.3972,106.47,106.45,58.38134533]
[1744191042377,9.46136044,106.47,106.45,58.44510709]
[1744191042569,0.06416044,106.47,106.45,67.84350709]
[1744191043375,0.06416044,106.47,106.45,39.40796176]
[1744191043566,0.06416044,106.47,106.45,36.92376176]
[1744191043766,0.06416044,106.47,106.45,0.06376176]
[1744191043967,9.3977,106.46,106.45,0.06376176]
[1744191049078,9.3994,106.45,106.42,11.8942]
[1744191050281,9.46570762,106.45,106.42,11.95534156]
[1744191052079,9.46570762,106.45,106.42,2.55424156]
[1744191053279,9.3994,106.44,106.42,14.76451344]
[1744191056379,9.3994,106.44,106.42,2.55424156]
[1744191059678,9.3994,106.44,106.42,0.06114156]
[1744191061585,9.4003,106.43,106.42,0.06114156]
[1744191066592,9.4019,106.42,106.39,12.21027188]
[1744191067191,9.4019,106.42,106.39,21.61377188]
[1744191067790,9.47287805,106.42,106.39,21.68116121]
[1744191067988,0.07097805,106.42,106.39,21.68116121]
[1744191069091,0.07097805,106.42,106.39,12.27766121]
[1744191069389,9.47257805,106.42,106.39,12.27766121]
[1744191069688,9.47257805,106.42,106.39,21.68136121]
[1744191069893,9.47257805,106.42,106.39,375.27766121]
[1744191070796,9.47257805,106.42,106.39,363.06738933]
[1744191070984,9.47257805,106.42,106.39,375.27766121]
[1744191071189,9.4021,106.41,106.39,363.06738933]
[1744191071688,9.4021,106.41,106.39,375.27766121]
[1744191072091,0.07097805,106.42,106.39,375.27766121]
[1744191072395,9.47267805,106.42,106.39,412.13766121]
[1744191075893,9.47267805,106.42,106.39,399.92738933]
[1744191076086,0.07097805,106.42,106.39,399.92738933]
[1744191076594,9.47247805,106.42,106.39,399.92738933]
[1744191077795,9.4022,106.41,106.39,399.92738933]
[1744191078188,0.07097805,106.42,106.39,399.92738933]
[1744191078494,9.47287805,106.42,106.39,399.92738933]
[1744191078690,0.07097805,106.42,106.39,412.13766121]
[1744191078894,9.47247805,106.42,106.39,412.13766121]
[1744191079595,9.47247805,106.42,106.39,399.92738933]
[1744191080096,9.4021,106.41,106.39,399.92738933]
[1744191080797,9.47267805,106.42,106.39,399.92738933]
[1744191081794,0.07097805,106.42,106.4,12.21027188]
[1744191082298,0.07097805,106.42,106.4,375.21027188]
[1744191082895,0.07097805,106.42,106.4,363.0]
[1744191083193,0.07097805,106.42,106.4,375.21027188]
[1744191085697,0.07097805,106.42,106.4,372.4029]
[1744191085897,0.07097805,106.42,106.4,375.21027188]
[1744191086899,0.07097805,106.42,106.4,363.0]
[1744191087295,0.07097805,106.42,106.4,375.21027188]
[1744191087698,0.07097805,106.42,106.4,384.61317188]
[1744191087899,0.07097805,106.42,106.4,375.21027188]
[1744191089600,9.47227805,106.42,106.4,375.21027188]
[1744191090007,0.07097805,106.42,106.4,375.21027188]
[1744191090701,9.47237805,106.42,106.4,375.21027188]
[1744191091406,9.47237805,106.42,106.4,363.0]
[1744191092504,9.47237805,106.42,106.4,375.21027188]
[1744191094197,9.47237805,106.42,106.41,12.21027188]
[1744191094198,0.07097805,106.42,106.41,12.21027188]
[1744191094906,0.07097805,106.42,106.4,384.61277188]
[1744191095403,0.07097805,106.42,106.4,375.21027188]
[1744191096304,9.47257805,106.42,106.4,375.21027188]
[1744191096908,0.07097805,106.42,106.4,363.0]
[1744191097512,9.47267805,106.42,106.4,363.0]
[1744191099812,9.47267805,106.42,106.39,49.11766121]
[1744191100310,0.07097805,106.42,106.39,49.11766121]
[1744191100912,9.4021,106.41,106.39,49.11766121]
[1744191101920,9.47257805,106.42,106.39,49.11766121]
[1744191102213,0.07097805,106.42,106.39,58.52136121]
[1744191103115,9.47217805,106.42,106.39,58.52136121]
[1744191104016,9.4025,106.41,106.39,49.11766121]
[1744191104217,9.4025,106.41,106.39,36.90738933]
[1744191104820,9.4025,106.41,106.39,46.31108933]
[1744191107720,9.403,106.4,106.39,36.90738933]
[1744191107915,9.403,106.4,106.39,0.06738933]
[1744191108615,0.07097805,106.42,106.39,49.11766121]
[1744191109217,9.47247805,106.42,106.4,9.4026]
[1744191113021,0.07097805,106.42,106.41,9.4021]
[1744191113927,9.47217805,106.42,106.41,9.4021]
[1744191114226,9.47217805,106.42,106.4,9.4024]
[1744191114930,9.4024,106.41,106.39,46.31098933]
[1744191115123,9.4024,106.41,106.39,58.52126121]
[1744191116725,9.4024,106.41,106.39,46.31098933]
[1744191116933,9.4024,106.41,106.39,36.90738933]
[1744191119731,9.47257805,106.42,106.39,46.31078933]
[1744191119929,0.07097805,106.42,106.39,46.31078933]
[1744191120238,9.47267805,106.42,106.39,9.47078933]
[1744191120438,0.07097805,106.42,106.39,0.06738933]
[1744191120929,9.4025,106.41,106.39,0.06738933]
[1744191121129,0.07097805,106.42,106.39,9.47118933]
[1744191121331,9.4021,106.41,106.39,0.06738933]
[1744191121529,0.07097805,106.42,106.39,0.06738933]
[1744191121932,9.4021,106.41,106.39,0.06738933]
[1744191124137,9.4021,106.41,106.39,9.47118933]
[1744191124337,9.47247805,106.42,106.39,21.68146121]
[1744191124838,9.4023,106.41,106.39,21.68146121]
[1744191125030,9.4023,106.41,106.4,2.6325]
[1744191125842,9.47257805,106.42,106.4,48.8355]
[1744191126136,9.47257805,106.42,106.4,53.9117]
[1744191126639,9.47257805,106.42,106.4,66.12197188]
[1744191127539,0.07097805,106.42,106.39,0.06738933]
[1744191127940,9.403,106.4,106.39,0.06738933]
[1744191134946,9.4047,106.38,106.37,2.629]
[1744191135742,9.4061,106.37,106.34,11.881]
[1744191136146,9.4749303,106.37,106.34,11.95252653]
[1744191136342,9.4068,106.36,106.34,2.54462653]
[1744191136541,0.0688303,106.37,106.34,2.54462653]
[1744191136953,9.4750303,106.37,106.34,11.95282653]
[1744191137246,9.4750303,106.37,106.35,12.21027188]
[1744191138052,0.0688303,106.37,106.36,12.21027188]
[1744191138252,0.0688303,106.37,106.36,14.78497188]
[1744191138457,0.0688303,106.37,106.36,2.5747]
[1744191138753,9.4744303,106.37,106.36,2.5747]
[1744191139353,0.0688303,106.37,106.36,2.5747]
[1744191139952,9.4744303,106.37,106.36,2.5747]
[1744191143947,21.68470218,106.37,106.36,2.5747]
[1744191144152,9.4074,106.35,106.34,2.54462653]
[1744191144450,21.61767188,106.35,106.34,2.54462653]
[1744191145359,9.4074,106.35,106.34,2.54462653]
[1744191149257,9.407,106.36,106.34,2.54462653]
[1744191149459,0.0688303,106.37,106.34,2.54462653]
[1744191149964,9.4074,106.35,106.34,2.54462653]
[1744191150661,9.407,106.36,106.34,2.54462653]
[1744191151157,0.0688303,106.37,106.35,12.21027188]
[1744191151564,0.0688303,106.37,106.34,2.54462653]
[1744191152264,9.4068,106.36,106.34,2.54462653]
[1744191152652,12.27910218,106.37,106.34,2.54462653]
[1744191154256,12.21027188,106.35,106.34,2.653e-05]
[1744191154859,21.61767188,106.35,106.34,2.653e-05]
[1744191155271,12.21027188,106.35,106.27,12.21027188]
[1744191155563,9.4114,106.31,106.27,12.21027188]
[1744191155768,9.4114,106.31,106.28,12.21027188]
[1744191155966,9.4114,106.31,106.28,21.62317188]
[1744191156468,9.47905284,106.31,106.28,21.68598953]
[1744191157266,9.4127,106.29,106.28,0.06281765]
[1744191163569,9.4145,106.27,106.23,36.8]
[1744191163761,9.4145,106.27,106.24,12.21027188]
[1744191163962,9.4145,106.27,106.24,21.62687188]
[1744191164656,9.48605718,106.27,106.24,21.69837395]
[1744191165269,9.48605718,106.27,106.24,12.28177395]
[1744191165566,0.07155718,106.27,106.25,12.21027188]
[1744191166068,0.07155718,106.27,106.26,12.21027188]
[1744191166270,0.07155718,106.27,106.26,49.03027188]
[1744191166462,0.07155718,106.27,106.24,12.28177395]
[1744191166661,9.48665718,106.27,106.24,12.28177395]
[1744191166863,0.07155718,106.27,106.26,21.62557188]
[1744191167063,9.4128,106.29,106.26,49.03027188]
[1744191167263,9.4128,106.29,106.27,12.21027188]
[1744191167769,9.4128,106.29,106.27,21.62437188]
[1744191168064,12.21027188,106.32,106.26,36.82]
[1744191168271,0.06967088,106.29,106.27,0.06084404]
[1744191168470,9.414,106.28,106.27,0.06084404]
[1744191169172,18.8076,106.4,106.27,569.67111592]
[1744191169370,12.21027188,106.38,106.33,12.21027188]
[1744191169671,9.4064,106.37,106.34,12.21027188]
[1744191169870,12.21027188,106.38,106.33,54.17947188]
[1744191170268,9.406,106.37,106.33,63.58787188]
[1744191170473,9.46706444,106.37,106.34,0.06492162]
[1744191171270,0.06106444,106.37,106.34,0.06492162]
[1744191171874,9.46696444,106.37,106.34,0.06492162]
[1744191173568,0.06106444,106.37,106.34,0.06492162]
[1744191173970,19.10880694,106.35,106.27,1.88199868]
[1744191174170,19.10880694,106.33,106.24,7.2784]
[1744191174371,9.4122,106.3,106.26,9.415]
[1744191174570,36.8,106.32,106.24,44.0784]
[1744191174776,9.4134,106.29,106.25,9.4159]
[1744191175078,36.8,106.32,106.25,9.4159]
[1744191175378,0.06637737,106.28,106.26,0.05929915]
[1744191176284,9.48027737,106.28,106.26,0.05929915]
[1744191177073,0.06637737,106.28,106.26,0.05929915]
[1744191178381,9.48067737,106.28,106.26,0.05929915]
[1744191178575,0.06637737,106.28,106.26,0.05929915]
[1744191180072,9.48027737,106.28,106.26,0.05929915]
[1744191181082,9.48027737,106.28,106.26,9.47459915]
[1744191181974,9.48027737,106.28,106.26,0.05929915]
[1744191182181,9.4145,106.27,106.26,0.05929915]
[1744191182573,9.48037737,106.28,106.26,9.47449915]
[1744191182771,0.06637737,106.28,106.26,0.05929915]
[1744191183083,9.48057737,106.28,106.26,0.05929915]
[1744191183884,0.06637737,106.28,106.26,0.05929915]
[1744191184272,0.06637737,106.28,106.26,9.47459915]
[1744191184583,0.06637737,106.28,106.26,0.05929915]
[1744191184783,0.06637737,106.28,106.27,9.4145]
[1744191188788,9.47997737,106.28,106.26,9.47379915]
[1744191189792,0.06637737,106.28,106.27,9.4145]
[1744191189987,57.24663885,106.39,106.27,9.4]
[1744191190192,2.2353,106.38,106.29,19.10880694]
[1744191190488,9.4095,106.33,106.31,9.4106]
[1744191190680,9.4095,106.33,106.31,46.2106]
[1744191191090,9.47698685,106.33,106.31,46.2742911]
[1744191191885,0.06748685,106.33,106.31,46.2742911]
[1744191192691,0.06748685,106.33,106.32,9.41]
[1744191198294,0.06748685,106.33,106.31,0.0636911]
[1744191198890,0.06748685,106.33,106.32,9.41]
[1744191204694,0.06748685,106.33,106.32,46.19]
[1744191205199,0.06748685,106.33,106.32,9.41]
[1744191205399,0.06748685,106.33,106.32,46.19]
[1744191209505,0.06748685,106.33,106.32,36.78]
[1744191209998,12.2320788,106.37,106.32,46.19]
[1744191210905,12.2320788,106.37,106.32,36.78]
[1744191211205,0.06510241,106.36,106.33,0.06729469]
[1744191211509,0.06510241,106.36,106.33,9.47599469]
[1744191211704,9.47250241,106.36,106.33,9.47599469]
[1744191212008,0.06510241,106.36,106.33,9.47599469]
[1744191212707,9.4074,106.35,106.33,0.06729469]
[1744191213513,9.4083,106.34,106.33,0.06729469]
[1744191213912,0.06510241,106.36,106.33,0.06729469]
[1744191214114,9.4082,106.35,106.33,0.06729469]
[1744191218317,0.06510241,106.36,106.33,0.06729469]
[1744191219218,9.4083,106.34,106.33,0.06729469]
[1744191219912,12.2320788,106.35,106.28,36.78]
[1744191220114,2.2322,106.34,106.29,12.2320788]
[1744191220313,12.2320788,106.32,106.27,9.414]
[1744191220513,9.4123,106.3,106.27,9.414]
[1744191220714,15.6980788,106.34,106.28,12.2320788]
[1744191220917,9.4098,106.33,106.3,9.4118]
[1744191221116,0.06179333,106.32,106.3,0.06112817]
[1744191221614,9.47219333,106.32,106.3,0.06112817]
[1744191222112,9.4109,106.31,106.3,0.06112817]
[1744191223921,9.47239333,106.32,106.3,0.06112817]
[1744191224122,0.06179333,106.32,106.3,0.06112817]
[1744191225319,9.47189333,106.32,106.3,0.06112817]
[1744191225521,0.06179333,106.32,106.3,9.47262817]
[1744191226217,0.06179333,106.32,106.24,36.78]
[1744191226218,49.07387213,106.32,106.24,36.78]
[1744191226518,9.4123,106.3,106.25,12.2320788]
[1744191226722,49.0120788,106.32,106.26,9.4149]
[1744191227124,9.4128,106.29,106.26,9.4149]
[1744191227517,0.06054484,106.29,106.26,9.477256]
[1744191227824,0.06054484,106.29,106.26,0.062356]
[1744191228212,9.4145,106.27,106.26,0.062356]
[1744191229020,9.4162,106.26,106.23,12.2320788]
[1744191229221,9.4162,106.26,106.21,7.183]
[1744191229420,51.2989788,106.29,106.23,12.2320788]
[1744191229619,51.2989788,106.29,106.24,9.4168]
[1744191229620,14.5189788,106.29,106.24,9.4168]
[1744191229918,14.5189788,106.29,106.23,49.0120788]
[1744191230114,14.5189788,106.29,106.25,0.06471622]
[1744191230115,0.07013047,106.28,106.25,0.06471622]
[1744191230325,9.416,106.26,106.25,0.06471622]
[1744191231327,9.4149,106.27,106.25,0.06471622]
[1744191231816,12.2320788,106.26,106.18,496.86]
[1744191232021,12.2320788,106.25,106.18,533.64]
[1744191232215,12.2320788,106.25,106.2,21.6520788]
[1744191232425,9.4188,106.23,106.2,21.6520788]
[1744191232620,12.2320788,106.25,106.2,12.2320788]
[1744191232926,12.2320788,106.27,106.22,12.2320788]
[1744191233124,0.06021795,106.24,106.22,12.2320788]
[1744191233321,12.29229675,106.24,106.22,0.06209208]
[1744191233627,9.47781795,106.24,106.22,0.06209208]
[1744191234018,0.06021795,106.24,106.22,0.06209208]
[1744191234222,0.06021795,106.24,106.22,21.71267088]
[1744191234423,0.06021795,106.24,106.23,12.2320788]
[1744191234727,0.06021795,106.24,106.23,21.6500788]
[1744191234928,0.06021795,106.24,106.23,9.418]
[1744191235227,0.06021795,106.24,106.22,9.48039208]
[1744191235724,9.47771795,106.24,106.22,0.06209208]
[1744191237931,0.06021795,106.24,106.17,19.14567622]
[1744191238131,55.92567622,106.25,106.18,6.728]
[1744191238432,55.92567622,106.25,106.19,36.78]
[1744191238729,2.3042,106.27,106.19,36.78]
[1744191238929,9.4825613,106.24,106.22,0.02489258]
[1744191239132,0.0649613,106.24,106.22,0.02489258]
[1744191239326,9.4824613,106.24,106.22,0.02489258]
[1744191241232,0.0649613,106.24,106.22,36.80489258]
[1744191241432,0.0649613,106.24,106.22,41.20179258]
[1744191241636,0.0649613,106.24,106.23,9.418]
[1744191242233,0.0649613,106.24,106.22,50.62009258]